bitfinex/quotes_BTCUSD_20230115
["timestamp","ask_amount","ask_price","bid_price","bid_amount"]
[1673774369782,0.07938519,20639.0,20634.0,1.06461447]
[1673774370029,0.07938519,20639.0,20634.0,1.8542712]
[1673774370030,0.35980348,20638.0,20634.0,1.8542712]
[1673774370278,0.35980348,20638.0,20634.0,1.27428973]
[1673774370525,0.42902738,20638.0,20634.0,1.27428973]
[1673774370777,0.35980348,20638.0,20634.0,1.27428973]
[1673774371037,0.35980348,20638.0,20634.0,0.78965673]
[1673774371287,0.49469229,20639.0,20634.0,0.67536295]
[1673774371544,0.49469229,20639.0,20634.0,1.06461847]
[1673774371812,0.85586455,20639.0,20635.0,0.7083]
[1673774372059,0.01016129,20639.0,20635.0,1.28828147]
[1673774372304,0.01016129,20639.0,20636.0,0.96040399]
[1673774372565,0.01016129,20639.0,20637.0,0.484566]
[1673774372810,0.01016129,20639.0,20636.0,1.66246963]
[1673774373056,0.01016129,20639.0,20636.0,0.78862611]
[1673774373316,0.01016129,20639.0,20636.0,1.27321611]
[1673774373813,0.00940346,20639.0,20636.0,0.78863511]
[1673774374065,0.2988949,20639.0,20636.0,0.30404511]
[1673774374571,0.34461363,20638.0,20636.0,0.30404511]
[1673774375315,0.34461363,20638.0,20636.0,0.30410511]
[1673774375570,0.49392246,20639.0,20636.0,0.30410511]
[1673774376068,0.00940346,20639.0,20636.0,0.30410511]
[1673774378372,0.00940346,20639.0,20636.0,0.79135101]
[1673774378621,0.00940346,20639.0,20637.0,0.126724]
[1673774378878,0.00940346,20639.0,20636.0,0.67224086]
[1673774379128,0.00940346,20639.0,20636.0,0.35610427]
[1673774379431,0.88726597,20639.0,20636.0,0.35610427]
[1673774379642,1.3710152,20639.0,20636.0,0.35610427]
[1673774379890,0.36432447,20638.0,20636.0,0.35610427]
[1673774380132,0.84887147,20638.0,20636.0,6e-05]
[1673774380380,0.84887147,20638.0,20635.0,1.05958332]
[1673774380895,1.33341447,20638.0,20635.0,1.05958332]
[1673774382422,0.32552691,20637.0,20635.0,1.05958332]
[1673774382712,1.775279,20636.0,20635.0,6e-05]
[1673774385314,2.09772852,20636.0,20635.0,6e-05]
[1673774385843,2.09697948,20636.0,20635.0,6e-05]
[1673774386341,1.78302996,20636.0,20635.0,6e-05]
[1673774386598,2.08302996,20636.0,20635.0,6e-05]
[1673774387355,3.19673176,20636.0,20635.0,6e-05]
[1673774387641,3.41305,20636.0,20633.0,6e-05]
[1673774387897,0.489569,20635.0,20633.0,6e-05]
[1673774388151,1.774672,20634.0,20633.0,6e-05]
[1673774390184,1.75643519,20634.0,20633.0,6e-05]
[1673774390448,2.04087595,20634.0,20633.0,6e-05]
[1673774390715,0.969274,20634.0,20633.0,0.09022]
[1673774390983,0.484637,20634.0,20633.0,0.09022]
[1673774391232,0.3828969,20635.0,20633.0,0.09022]
[1673774391763,0.32074955,20634.0,20633.0,6e-05]
[1673774392023,0.3828969,20635.0,20633.0,6e-05]
[1673774393041,0.321507,20634.0,20633.0,6e-05]
[1673774393292,0.3828969,20635.0,20633.0,6e-05]
[1673774394282,0.321507,20634.0,20633.0,6e-05]
[1673774394533,0.3828969,20635.0,20631.0,0.78538594]
[1673774394814,0.4521208,20635.0,20631.0,0.78538594]
[1673774395048,0.4521208,20635.0,20631.0,0.48476]
[1673774395306,0.4521208,20635.0,20632.0,0.30848462]
[1673774395594,0.3828969,20635.0,20632.0,0.30848462]
[1673774397615,0.14414892,20636.0,20632.0,0.47720169]
[1673774397895,0.14414892,20638.0,20633.0,0.046486]
[1673774398150,1.2024442,20639.0,20634.0,0.19072595]
[1673774398398,1.2024442,20639.0,20635.0,0.88702595]
[1673774398654,1.2024442,20639.0,20636.0,0.19072595]
[1673774398918,0.98685779,20639.0,20636.0,0.19072595]
[1673774399440,0.98685779,20639.0,20635.0,0.6963]
[1673774399716,0.98685779,20639.0,20635.0,0.88702595]
[1673774400222,0.15278261,20639.0,20635.0,1.37163095]
[1673774400227,0.50893267,20639.0,20635.0,1.180905]
[1673774400484,0.50893267,20639.0,20636.0,0.30046498]
[1673774401501,0.321507,20638.0,20636.0,0.29990498]
[1673774401757,0.50893267,20639.0,20636.0,0.29990498]
[1673774402763,0.36118356,20638.0,20636.0,0.29990498]
[1673774403244,0.15278261,20639.0,20636.0,0.29990498]
[1673774403812,0.49272104,20639.0,20636.0,0.29990498]
[1673774404032,0.321507,20638.0,20636.0,0.29990498]
[1673774404286,0.49272104,20639.0,20636.0,0.29990498]
[1673774404560,0.1520576,20639.0,20636.0,0.29990498]
[1673774404837,0.1520576,20639.0,20636.0,0.29996498]
[1673774405700,0.46264287,20639.0,20636.0,0.29996498]
[1673774405950,0.14414892,20638.0,20636.0,0.29996498]
[1673774406726,0.14414892,20637.0,20636.0,6e-05]
[1673774406992,2.54656804,20637.0,20636.0,6e-05]
[1673774407277,1.50721602,20637.0,20636.0,6e-05]
[1673774407532,1.79364909,20637.0,20636.0,6e-05]
[1673774407835,1.43503747,20637.0,20636.0,6e-05]
[1673774408094,1.65161449,20637.0,20636.0,6e-05]
[1673774408628,1.94327131,20637.0,20636.0,6e-05]
[1673774408914,3.01047922,20637.0,20636.0,6e-05]
[1673774409222,2.0853395,20637.0,20636.0,6e-05]
[1673774409977,2.08469772,20637.0,20636.0,6e-05]
[1673774410239,1.79826465,20637.0,20636.0,6e-05]
[1673774410736,1.9426724,20637.0,20636.0,6e-05]
[1673774410991,0.80543122,20637.0,20636.0,6e-05]
[1673774411526,0.94983897,20637.0,20636.0,6e-05]
[1673774412027,0.80543122,20637.0,20636.0,6e-05]
[1673774412278,0.484566,20637.0,20636.0,0.09022]
[1673774412786,0.484566,20637.0,20636.0,0.09016]
[1673774413045,0.97040843,20638.0,20636.0,0.09016]
[1673774413303,1.1870348,20638.0,20636.0,0.09016]
[1673774413557,1.1870348,20638.0,20636.0,0.4291668]
[1673774413558,0.321504,20637.0,20636.0,0.4291668]
[1673774414057,0.97040843,20638.0,20636.0,0.4291668]
[1673774414831,0.321504,20637.0,20636.0,0.4291668]
[1673774415086,0.97040843,20638.0,20636.0,0.4291668]
[1673774415382,0.321504,20637.0,20636.0,0.3390068]
[1673774415917,0.84477367,20637.0,20635.0,0.31174882]
[1673774416189,0.16919,20636.0,20635.0,0.31174882]
[1673774416454,0.52389295,20637.0,20635.0,0.31174882]
[1673774416733,0.3794852,20637.0,20635.0,0.31174882]
[1673774416993,1.33016212,20638.0,20635.0,0.31174882]
[1673774417248,0.62896975,20638.0,20635.0,0.31174882]
[1673774417507,0.14440775,20638.0,20635.0,0.31174882]
[1673774418021,1.17107244,20639.0,20635.0,0.31174882]
[1673774418274,0.83545881,20639.0,20635.0,0.19078595]
[1673774418548,0.14440775,20639.0,20635.0,0.58004147]
[1673774418809,0.15354387,20640.0,20636.0,0.31540871]
[1673774419068,0.15354387,20640.0,20636.0,1.37997618]
[1673774419347,0.15354387,20640.0,20636.0,2.09067618]
[1673774419875,0.37017024,20640.0,20636.0,2.09067618]
[1673774420870,0.37017024,20640.0,20636.0,1.89995023]
[1673774420871,0.37017024,20640.0,20636.0,1.51069471]
[1673774421133,0.33469537,20639.0,20636.0,1.02610871]
[1673774421390,0.47910312,20639.0,20636.0,1.02610871]
[1673774421644,0.47910312,20639.0,20637.0,0.38496033]
[1673774421891,0.46071756,20639.0,20637.0,0.38496033]
[1673774422141,0.51219556,20640.0,20637.0,0.38496033]
[1673774422142,0.37017024,20640.0,20637.0,0.38496033]
[1673774422389,0.15354387,20640.0,20637.0,0.38496033]
[1673774423691,0.00913612,20640.0,20637.0,0.38496033]
[1673774423935,0.00913612,20640.0,20636.0,1.679857]
[1673774424184,0.00913612,20640.0,20637.0,0.86043816]
[1673774424683,0.13545304,20640.0,20638.0,0.39144574]
[1673774424929,0.10000676,20640.0,20638.0,0.39144574]
[1673774425175,0.50085444,20641.0,20638.0,0.39144574]
[1673774425439,0.98750944,20642.0,20638.0,0.39144574]
[1673774425690,0.19877488,20643.0,20638.0,1.54906547]
[1673774425946,0.39372847,20644.0,20639.0,0.23844995]
[1673774426198,0.38332247,20644.0,20640.0,0.19072595]
[1673774426447,0.3651588,20644.0,20641.0,0.39403355]
[1673774426697,0.8495608,20644.0,20641.0,0.5847595]
[1673774427002,0.8495608,20644.0,20641.0,0.39403355]
[1673774427213,0.484402,20644.0,20641.0,0.39403355]
[1673774427473,0.968822,20644.0,20641.0,0.39403355]
[1673774427998,0.96809808,20644.0,20641.0,0.39403355]
[1673774428817,0.48367808,20644.0,20641.0,0.39403355]
[1673774430095,0.321505,20643.0,20641.0,0.39409355]
[1673774430351,0.484438,20643.0,20641.0,0.39409355]
[1673774431139,0.46650847,20643.0,20641.0,0.39409355]
[1673774431646,1.16311978,20645.0,20642.0,0.39784129]
[1673774431647,0.4964397,20645.0,20642.0,0.39784129]
[1673774431894,0.0120387,20645.0,20642.0,0.58856724]
[1673774432141,0.32998262,20644.0,20642.0,0.39784129]
[1673774432643,0.383958,20642.0,20640.0,0.6118278]
[1673774432894,0.44280736,20642.0,20639.0,0.37558536]
[1673774433659,0.37358346,20642.0,20639.0,0.37558536]
[1673774433922,0.77303755,20644.0,20640.0,0.31103474]
[1673774434167,0.77303755,20644.0,20641.0,0.30775141]
[1673774434168,0.80492907,20644.0,20641.0,0.30775141]
[1673774434421,1.28933107,20644.0,20641.0,0.49847736]
[1673774434743,1.28933107,20644.0,20641.0,0.30775141]
[1673774434925,1.27149519,20644.0,20641.0,0.30775141]
[1673774435175,1.41576773,20644.0,20641.0,0.30775141]
[1673774435427,0.3036998,20643.0,20641.0,0.30775141]
[1673774435686,0.168566,20642.0,20641.0,0.30775141]
[1673774435948,0.85711763,20645.0,20641.0,0.30775141]
[1673774435949,0.0120387,20645.0,20641.0,0.30775141]
[1673774436199,0.31496088,20645.0,20642.0,0.101592]
[1673774436447,0.31496088,20645.0,20641.0,0.69557397]
[1673774436701,0.30453922,20645.0,20642.0,0.34807178]
[1673774437224,0.29411733,20645.0,20642.0,0.34807178]
[1673774437737,0.2755734,20645.0,20642.0,0.34807178]
[1673774437986,0.2755734,20645.0,20642.0,1.02297178]
[1673774438236,0.62863754,20646.0,20642.0,1.02297178]
[1673774438237,0.59806954,20646.0,20642.0,1.02297178]
[1673774438558,0.57701823,20646.0,20642.0,1.21369773]
[1673774438739,0.5591511,20646.0,20642.0,1.21369773]
[1673774438997,0.5591511,20646.0,20642.0,1.02297178]
[1673774438998,0.49898561,20646.0,20642.0,1.02297178]
[1673774439243,0.8570365,20646.0,20643.0,0.31253219]
[1673774439495,0.76976687,20646.0,20643.0,0.31253219]
[1673774439752,0.29295296,20645.0,20643.0,0.31253219]
[1673774439994,0.114689,20644.0,20643.0,0.31253219]
[1673774440308,1.47052926,20646.0,20643.0,0.31253219]
[1673774440562,0.25305265,20645.0,20643.0,0.31253219]
[1673774440807,0.043223,20644.0,20643.0,0.31253219]
[1673774441287,1.4198999,20646.0,20643.0,0.31253219]
[1673774441556,1.61858308,20646.0,20643.0,0.31253219]
[1673774441811,0.23957832,20645.0,20643.0,0.31253219]
[1673774442074,0.492879,20645.0,20643.0,0.31253219]
[1673774442618,0.143241,20644.0,20643.0,0.31253219]
[1673774442871,0.143241,20644.0,20641.0,1.06770426]
[1673774442872,0.46629386,20646.0,20644.0,0.36691921]
[1673774443123,0.43592947,20647.0,20644.0,0.36691921]
[1673774443377,0.91698779,20647.0,20644.0,0.55764516]
[1673774443635,0.91040996,20647.0,20644.0,0.36691921]
[1673774443891,0.85892493,20647.0,20644.0,0.36691921]
[1673774444155,0.83167178,20647.0,20644.0,0.36691921]
[1673774444403,0.81035271,20647.0,20645.0,0.33787635]
[1673774444657,0.0085,20646.0,20645.0,0.33787635]
[1673774445695,0.48490769,20647.0,20645.0,0.33787635]
[1673774445949,0.48361155,20647.0,20645.0,0.33787635]
[1673774446332,0.45194734,20647.0,20645.0,0.33787635]
[1673774446495,0.93627834,20647.0,20645.0,0.33764444]
[1673774446755,0.52538593,20646.0,20643.0,0.37291532]
[1673774447011,0.93573983,20646.0,20643.0,0.37291532]
[1673774447281,0.445771,20646.0,20643.0,0.37291532]
[1673774447591,0.407171,20646.0,20641.0,1.167654]
[1673774447822,0.0085,20645.0,20641.0,1.167654]
[1673774448070,0.05883372,20645.0,20644.0,0.37368505]
[1673774448332,0.38828716,20646.0,20644.0,0.37368505]
[1673774448591,0.37606665,20646.0,20644.0,0.37368505]
[1673774448855,0.13286911,20645.0,20644.0,0.37368505]
[1673774449107,1.37322283,20645.0,20640.0,0.7065]
[1673774449364,0.95093801,20645.0,20642.0,0.38365047]
[1673774449889,0.084607,20644.0,20642.0,0.38365047]
[1673774450169,0.484425,20643.0,20642.0,0.38365047]
[1673774450405,0.492925,20643.0,20642.0,0.38365047]
[1673774450658,0.0085,20643.0,20640.0,1.08100408]
[1673774450916,0.0085,20642.0,20640.0,0.7065]
[1673774451166,0.0085,20642.0,20641.0,0.321506]
[1673774451429,0.0085,20643.0,20641.0,0.321506]
[1673774451671,0.484402,20644.0,20642.0,0.140232]
[1673774451672,0.46555465,20644.0,20642.0,0.140232]
[1673774451939,0.27500991,20644.0,20643.0,0.39263036]
[1673774452192,0.44880122,20645.0,20643.0,0.39263036]
[1673774452485,0.95061726,20645.0,20643.0,0.39263036]
[1673774452756,0.076107,20644.0,20643.0,0.39263036]
[1673774453278,0.9688,20645.0,20643.0,0.39263036]
[1673774453789,0.0085,20644.0,20643.0,0.39263036]
[1673774457464,0.71322011,20644.0,20643.0,0.39263036]
[1673774457725,2.1427447,20644.0,20638.0,0.673]
[1673774458035,2.1427447,20644.0,20640.0,0.29269791]
[1673774458036,0.18451158,20642.0,20640.0,0.29269791]
[1673774458270,0.569079,20641.0,20640.0,0.29269791]
[1673774458531,1.053551,20641.0,20640.0,0.29269791]
[1673774458782,1.41461215,20641.0,20639.0,0.3719666]
[1673774459042,1.12186846,20641.0,20640.0,0.3312758]
[1673774459308,1.19797546,20641.0,20636.0,1.1345]
[1673774459562,1.12186846,20641.0,20636.0,0.673]
[1673774459819,1.12186846,20641.0,20636.0,0.91817419]
[1673774459820,0.492972,20641.0,20636.0,0.91817419]
[1673774460079,0.0085,20641.0,20636.0,1.70083675]
[1673774460335,0.0085,20641.0,20637.0,0.321506]
[1673774460595,0.0085,20641.0,20638.0,0.140329]
[1673774460843,0.0085,20641.0,20639.0,0.321474]
[1673774461095,0.88537309,20641.0,20637.0,0.49228136]
[1673774461343,0.88537309,20641.0,20637.0,0.30131941]
[1673774461862,0.88537309,20641.0,20636.0,0.81817419]
[1673774461863,0.77808054,20641.0,20636.0,0.81817419]
[1673774462126,0.66827375,20642.0,20636.0,2.29583343]
[1673774462386,0.66827375,20642.0,20637.0,0.19072595]
[1673774462897,0.66827375,20642.0,20638.0,0.37701326]
[1673774463154,0.14442446,20640.0,20635.0,1.04921081]
[1673774463421,0.14442446,20640.0,20635.0,0.37221081]
[1673774463422,1.26180569,20639.0,20635.0,0.37221081]
[1673774463669,0.14448128,20638.0,20636.0,0.376052]
[1673774463922,0.560673,20637.0,20636.0,0.376052]
[1673774464174,0.55996348,20637.0,20636.0,0.376052]
[1673774464444,0.484566,20637.0,20636.0,0.376052]
[1673774464955,0.484566,20637.0,20634.0,0.68387384]
[1673774465217,0.484565,20638.0,20634.0,0.68387384]
[1673774465479,0.484531,20639.0,20635.0,0.19072595]
[1673774465789,0.46137583,20641.0,20636.0,0.61226195]
[1673774466008,0.46137583,20641.0,20637.0,0.33175695]
[1673774466009,0.0085,20640.0,20637.0,0.33175695]
[1673774466263,0.0085,20640.0,20638.0,0.321501]
[1673774466520,0.0085,20640.0,20639.0,0.141017]
[1673774466778,0.0085,20640.0,20635.0,0.76238444]
[1673774466779,0.28481128,20638.0,20635.0,0.76238444]
[1673774467041,0.28481128,20638.0,20635.0,0.30208444]
[1673774467296,0.0085,20637.0,20635.0,0.30208444]
[1673774468103,0.0085,20637.0,20635.0,0.28781181]
[1673774468360,0.0085,20638.0,20634.0,0.68387384]
[1673774468607,0.0085,20638.0,20634.0,0.87459979]
[1673774469388,0.0085,20638.0,20634.0,0.68387384]
[1673774470161,0.00780454,20638.0,20636.0,0.28784176]
[1673774470931,0.79709545,20638.0,20634.0,0.68387384]
[1673774471190,0.79709545,20638.0,20634.0,0.35275367]
[1673774471191,0.36080398,20637.0,20634.0,0.35275367]
[1673774471440,0.84538598,20637.0,20634.0,0.35275367]
[1673774471722,1.32995198,20637.0,20635.0,0.28141697]
[1673774472274,0.0085,20636.0,20635.0,0.28141697]
[1673774472479,0.49309,20636.0,20635.0,0.28141697]
[1673774472993,0.49309,20636.0,20634.0,0.00687384]
[1673774473256,0.49309,20636.0,20634.0,0.37419245]
[1673774474035,0.49309,20636.0,20634.0,0.00687384]
[1673774474036,1.36554408,20636.0,20634.0,0.00687384]
[1673774474292,0.075393,20635.0,20634.0,0.00687384]
[1673774474561,1.053119,20635.0,20634.0,0.00687384]
[1673774474828,1.353119,20635.0,20634.0,0.00687384]
[1673774475069,1.053119,20635.0,20634.0,0.00687384]
[1673774475607,1.35824989,20635.0,20634.0,0.00687384]
[1673774476131,1.35756789,20635.0,20634.0,0.00687384]
[1673774476642,1.28217489,20635.0,20634.0,0.00687384]
[1673774477445,1.65756789,20635.0,20634.0,0.00687384]
[1673774478980,1.352437,20635.0,20634.0,0.00687384]
[1673774479242,1.79570247,20635.0,20634.0,0.0061444]
[1673774479740,1.49691828,20635.0,20634.0,0.0061444]
[1673774480003,1.352437,20635.0,20634.0,0.0061444]
[1673774480280,1.49691828,20635.0,20634.0,0.0061444]
[1673774481073,1.70383865,20635.0,20634.0,0.0061444]
[1673774481365,1.352437,20635.0,20634.0,0.0061444]
[1673774482112,1.50624334,20635.0,20634.0,0.0061444]
[1673774482371,1.49625334,20635.0,20634.0,0.0061444]
[1673774483156,1.38640862,20635.0,20634.0,0.0061444]
[1673774483432,1.044619,20635.0,20634.0,0.19687035]
[1673774483692,1.044619,20635.0,20634.0,0.0061444]
[1673774484206,0.969226,20635.0,20634.0,0.0061444]
[1673774484473,1.044619,20635.0,20634.0,0.0061444]
[1673774484788,1.053119,20635.0,20634.0,0.0061444]
[1673774485493,0.568506,20635.0,20634.0,0.0061444]
[1673774485768,0.083893,20635.0,20634.0,0.0061444]
[1673774486787,0.383893,20635.0,20634.0,0.0061444]
[1673774487088,0.083893,20635.0,20634.0,0.0061444]
[1673774487589,0.083893,20635.0,20634.0,0.2891411]
[1673774487880,0.0085,20635.0,20634.0,0.2891411]
[1673774488137,0.00783087,20635.0,20634.0,0.2891411]
[1673774489195,0.37717482,20635.0,20634.0,0.0061444]
[1673774489460,0.86178782,20635.0,20634.0,0.0061444]
[1673774489722,1.16178782,20635.0,20634.0,0.0061444]
[1673774490240,1.64640082,20635.0,20634.0,0.0061444]
[1673774493388,1.34640082,20635.0,20634.0,0.0061444]
[1673774493658,1.05244987,20635.0,20634.0,0.0061444]
[1673774493942,0.97705687,20635.0,20634.0,0.40531488]
[1673774494219,0.9764026,20635.0,20634.0,0.40531488]
[1673774494492,1.0517956,20635.0,20634.0,0.0061444]
[1673774495256,1.3517956,20635.0,20634.0,0.0061444]
[1673774496028,1.39957177,20635.0,20634.0,0.0061444]
[1673774496551,1.39957177,20635.0,20634.0,0.0051444]
[1673774498384,1.69957177,20635.0,20634.0,0.0051444]
[1673774499112,1.54405305,20635.0,20634.0,0.0051444]
[1673774499873,1.84405305,20635.0,20634.0,0.0051444]
[1673774500123,1.84340496,20635.0,20634.0,0.0051444]
[1673774500379,2.06004165,20635.0,20634.0,0.0051444]
[1673774501140,1.84340496,20635.0,20634.0,0.0051444]
[1673774501395,2.06004165,20635.0,20634.0,0.0051444]
[1673774501909,2.06004165,20635.0,20634.0,0.0041444]
[1673774501910,1.54340496,20635.0,20634.0,0.0041444]
[1673774503196,1.76004165,20635.0,20634.0,0.0041444]
[1673774503699,2.06004165,20635.0,20634.0,0.0041444]
[1673774503946,1.91556037,20635.0,20634.0,0.0041444]
[1673774504213,1.91556037,20635.0,20634.0,0.0031444]
[1673774504971,2.20440929,20635.0,20634.0,0.0031444]
[1673774506247,2.20378796,20635.0,20634.0,0.0031444]
[1673774507277,2.20370023,20635.0,20634.0,0.0031444]
[1673774507522,1.90370023,20635.0,20634.0,0.0031444]
[1673774507775,2.20370023,20635.0,20634.0,0.0031444]
[1673774508032,2.20369751,20635.0,20634.0,0.0031444]
[1673774508298,1.90369751,20635.0,20634.0,0.0031444]
[1673774509077,3.16210888,20635.0,20634.0,0.0031444]
[1673774509589,3.46210888,20635.0,20634.0,0.0031444]
[1673774509842,3.17325996,20635.0,20634.0,0.0031444]
[1673774510865,2.81521863,20635.0,20634.0,0.0031444]
[1673774511877,3.17670168,20635.0,20634.0,0.0031444]
[1673774512386,3.1760773,20635.0,20634.0,0.0031444]
[1673774512639,3.17609556,20635.0,20634.0,0.0031444]
[1673774512887,2.81459425,20635.0,20634.0,0.0031444]
[1673774513426,2.51459425,20635.0,20634.0,0.0031444]
[1673774515211,2.81459425,20635.0,20634.0,0.0031444]
[1673774515993,3.24424385,20635.0,20634.0,0.00175848]
[1673774516766,3.56407435,20635.0,20634.0,0.00175848]
[1673774517267,2.78664858,20635.0,20634.0,0.00175848]
[1673774517521,3.07884065,20635.0,20634.0,0.00175848]
[1673774518035,2.79971075,20635.0,20634.0,0.00175848]
[1673774518283,2.56180224,20635.0,20634.0,0.00175848]
[1673774519292,2.16620717,20635.0,20634.0,0.00175848]
[1673774519553,2.8619916,20635.0,20634.0,0.00175848]
[1673774519772,2.46620717,20635.0,20634.0,0.00175848]
[1673774520097,2.78404444,20635.0,20634.0,0.00175848]
[1673774520334,2.55587327,20635.0,20634.0,0.00175848]
[1673774520585,3.03922907,20635.0,20634.0,0.00175848]
[1673774520837,3.31835897,20635.0,20634.0,0.00175848]
[1673774521086,3.68893032,20635.0,20634.0,0.00175848]
[1673774521352,3.20557452,20635.0,20634.0,0.00175848]
[1673774521606,2.44533707,20635.0,20634.0,0.19248443]
[1673774521864,2.16620717,20635.0,20634.0,0.00175848]
[1673774523400,2.81276389,20635.0,20634.0,0.40458236]
[1673774523649,2.24078628,20635.0,20634.0,0.40458236]
[1673774524172,2.24078628,20635.0,20634.0,0.28264443]
[1673774524173,0.50652934,20635.0,20634.0,0.28264443]
[1673774524212,0.1447404,20636.0,20634.0,0.38637001]
[1673774524471,0.14412894,20637.0,20635.0,0.141083]
[1673774524759,0.14412894,20637.0,20634.0,1.25311315]
[1673774524760,0.36122159,20637.0,20634.0,1.25311315]
[1673774525024,0.21709265,20637.0,20636.0,0.36707634]
[1673774525647,0.50652934,20637.0,20636.0,0.36707634]
[1673774525885,0.59042234,20637.0,20636.0,0.36707634]
[1673774526103,0.22559265,20637.0,20636.0,0.36707634]
[1673774526565,0.22559265,20637.0,20636.0,0.36950915]
[1673774526784,0.30098565,20637.0,20636.0,0.36707634]
[1673774527009,0.51502934,20637.0,20636.0,0.36707634]
[1673774527230,0.59042234,20637.0,20636.0,0.36707634]
[1673774527402,0.51502934,20637.0,20636.0,0.36707634]
[1673774528501,0.59042234,20637.0,20636.0,0.36707634]
[1673774528724,0.51502934,20637.0,20636.0,0.36707634]
[1673774529192,0.59042234,20637.0,20636.0,0.36707634]
[1673774529656,0.51502934,20637.0,20636.0,0.36707634]
[1673774530326,0.2250074,20637.0,20636.0,0.36707634]
[1673774530992,0.0085,20637.0,20636.0,0.36707634]
[1673774533946,0.0085,20637.0,20634.0,1.0623872]
[1673774534212,0.0085,20638.0,20635.0,0.806149]
[1673774534454,0.0085,20639.0,20636.0,0.141057]
[1673774534713,0.92563749,20641.0,20637.0,0.70909882]
[1673774534984,0.92563749,20641.0,20638.0,0.33176695]
[1673774535191,0.14441503,20640.0,20638.0,0.47813206]
[1673774535485,0.14441503,20640.0,20638.0,0.28740611]
[1673774536262,0.1438311,20641.0,20638.0,0.28740611]
[1673774536792,0.0085,20640.0,20638.0,0.28740611]
[1673774537038,0.0085,20640.0,20638.0,0.77194811]
[1673774537290,0.0085,20640.0,20639.0,0.321536]
[1673774537542,0.03937829,20642.0,20640.0,0.36727193]
[1673774538806,0.03937829,20642.0,20640.0,0.85076593]
[1673774539624,0.02157123,20642.0,20640.0,0.85076593]
[1673774539893,0.00357345,20642.0,20640.0,0.36627193]
[1673774540672,0.00357345,20642.0,20640.0,0.19072595]
[1673774540931,0.51720147,20645.0,20641.0,0.33148592]
[1673774540932,0.968777,20645.0,20641.0,0.33148592]
[1673774541187,0.82433417,20644.0,20641.0,0.52221187]
[1673774541457,1.30873617,20644.0,20641.0,0.33148592]
[1673774541970,0.0085,20643.0,20641.0,0.33148592]
[1673774542484,0.49293,20643.0,20641.0,0.33148592]
[1673774542986,0.0085,20642.0,20641.0,0.33148592]
[1673774543253,0.46529866,20643.0,20641.0,0.33148592]
[1673774545812,0.44735212,20643.0,20641.0,0.33148592]
[1673774547617,0.4292258,20643.0,20641.0,0.33148592]
[1673774548323,0.4292258,20643.0,20639.0,0.54446872]
[1673774548324,0.44335163,20642.0,20639.0,0.37874753]
[1673774548617,1.044337,20641.0,20640.0,0.33128513]
[1673774548872,0.484443,20643.0,20640.0,0.33128513]
[1673774549123,0.492943,20643.0,20640.0,0.33128513]
[1673774549375,0.484381,20645.0,20640.0,0.19072595]
[1673774549618,0.0085,20644.0,20641.0,0.19072595]
[1673774549874,0.0085,20644.0,20640.0,0.48802455]
[1673774550395,0.0085,20644.0,20640.0,0.19072595]
[1673774550646,0.0085,20644.0,20641.0,0.37581423]
[1673774550905,0.0085,20644.0,20641.0,0.19072595]
[1673774551159,0.0085,20645.0,20640.0,1.34041172]
[1673774551417,0.0085,20645.0,20641.0,0.35775228]
[1673774551701,0.492881,20645.0,20641.0,0.54847823]
[1673774552201,0.492881,20645.0,20641.0,0.35775228]
[1673774552722,0.492881,20645.0,20641.0,0.54847823]
[1673774553223,0.492881,20645.0,20642.0,0.3141406]
[1673774559244,0.0085,20645.0,20641.0,0.85587772]
[1673774559490,0.0085,20645.0,20642.0,0.6635]
[1673774561036,0.0085,20645.0,20643.0,0.29828005]
[1673774561282,0.0085,20645.0,20644.0,0.09247635]
[1673774561538,0.0085,20645.0,20644.0,0.09016]
[1673774562302,0.0085,20645.0,20644.0,0.0902758]
[1673774562553,0.00192413,20646.0,20644.0,0.0902758]
[1673774562809,0.00192413,20646.0,20645.0,0.51226195]
[1673774563053,0.00192413,20646.0,20645.0,0.69296472]
[1673774563319,0.00192413,20646.0,20645.0,1.17734272]
[1673774564079,0.00192413,20646.0,20645.0,1.12929991]
[1673774564334,0.00192413,20646.0,20645.0,0.64492191]
[1673774564847,0.00192413,20646.0,20645.0,0.32338591]
[1673774566371,0.04792413,20646.0,20645.0,0.32738591]
[1673774566895,0.03012677,20646.0,20645.0,0.32738591]
[1673774567149,0.03012677,20646.0,20645.0,0.503256]
[1673774567398,0.01209953,20646.0,20645.0,0.503256]
[1673774567658,0.00561526,20650.0,20647.0,0.140797]
[1673774567914,0.00561526,20650.0,20648.0,0.88363867]
[1673774568173,0.00561526,20650.0,20649.0,0.140781]
[1673774568434,0.00561526,20650.0,20647.0,0.37142872]
[1673774568680,0.01271388,20652.0,20648.0,0.1]
[1673774568681,0.00292312,20652.0,20648.0,0.1]
[1673774568933,0.00292312,20652.0,20649.0,0.37142872]
[1673774569194,0.00292312,20652.0,20649.0,0.56215467]
[1673774569444,0.00292312,20652.0,20649.0,0.37142872]
[1673774569697,0.00292312,20652.0,20650.0,0.33771666]
[1673774569909,0.01142312,20652.0,20649.0,0.37142872]
[1673774570219,0.01142312,20652.0,20649.0,0.073]
[1673774570517,0.01142312,20652.0,20649.0,0.54442872]
[1673774570771,0.01142312,20652.0,20649.0,0.54642872]
[1673774571548,0.01142312,20652.0,20650.0,0.00011577]
[1673774572337,0.01142312,20652.0,20650.0,0.3694676]
[1673774573103,0.01142312,20652.0,20650.0,0.3714676]
[1673774573616,0.01142312,20652.0,20651.0,0.3855839]
[1673774574893,0.458333,20653.0,20651.0,0.3855839]
[1673774575151,0.458333,20653.0,20651.0,0.3925839]
[1673774575401,0.86752219,20654.0,20651.0,0.3926439]
[1673774575652,0.86752219,20654.0,20651.0,0.58336985]
[1673774575901,0.86752219,20654.0,20651.0,0.3856439]
[1673774576159,0.4975733,20654.0,20651.0,0.3926439]
[1673774576680,0.4975733,20654.0,20651.0,0.3856439]
[1673774576950,0.0085,20653.0,20651.0,0.3896439]
[1673774577960,0.0085,20653.0,20651.0,0.3856439]
[1673774578215,1.32531681,20655.0,20651.0,0.3856439]
[1673774578486,1.32531681,20655.0,20651.0,0.00406]
[1673774578487,0.37314497,20654.0,20651.0,0.00406]
[1673774578747,1.043775,20653.0,20651.0,0.00406]
[1673774578994,1.043775,20653.0,20651.0,6e-05]
[1673774578995,0.978372,20653.0,20651.0,6e-05]
[1673774579248,0.978372,20653.0,20648.0,0.32748447]
[1673774579249,0.000346,20650.0,20648.0,0.32748447]
[1673774579509,0.559677,20649.0,20648.0,0.32748447]
[1673774580256,0.568177,20649.0,20648.0,0.32748447]
[1673774581302,1.052461,20649.0,20648.0,0.004]
[1673774581557,1.41314003,20649.0,20648.0,0.004]
[1673774581878,1.69437216,20649.0,20648.0,0.004]
[1673774582091,1.352461,20649.0,20648.0,0.004]
[1673774582421,1.83759555,20649.0,20648.0,0.004]